[Event "TUR-ch U13-18 Open 2023"]
[Site "Antalya"]
[Date "2023.01.25"]
[Round "7"]
[White "Sozat, Arda"]
[Black "Cicek, Bilal Emre"]
[Result "0-1"]
[ECO "B45"]
[WhiteElo "1877"]
[BlackElo "1538"]
[Annotator "NA RC COMBH"]
[PlyCount "146"]
[EventDate "2023.01.17"]
[EventType "swiss"]
[EventCountry "TUR"]
[SourceTitle "playchess.com"]
[Source "ChessBase"]
[SourceQuality "1"]
[TimeControl "5400+30"]

1. e4 {[%emt 0:01:00]} c5 {[%emt 0:01:00]} 2. Nf3 {[%emt 0:00:30]} e6 {[%emt 0:00:30]} 3. d4 {[%emt 0:00:30]} cxd4 {[%emt 0:00:30]} 4. Nxd4 {[%emt 0:00:30]} Nf6 {[%emt 0:00:30]} 5. Nc3 {[%emt 0:00:30]} Nc6 {[%emt 0:00:30]} 6. Nxc6 {[%emt 0:00:30]} bxc6 {[%emt 0:00:00]} 7. e5 {[%emt 0:00:00]} Nd5 {[%emt 0:00:00]} 8. Ne4 {[%emt 0:00:00]} Bb7 {[%emt 0:00:00]} 9. c4 {[%emt 0:03:30]} Nb4 {[%emt 0:00:00]} 10. f4 {[%emt 0:15:30]} c5 {[%emt 0:04:30]} 11. Bd3 {[%emt 0:02:30]} Nxd3+ {[%emt 0:01:30]} 12. Qxd3 {[%emt 0:00:00]} Qc7 {[%emt 0:07:30]} 13. Be3 {[%emt 0:27:00]} Qc6 {[%emt 0:28:30]} 14. Nd2 {[%emt 0:20:30]} d5 {[%emt 0:23:30]} 15. exd6 {[%emt 0:07:04]} Bxd6 {[%emt 0:00:00]} 16. O-O-O {[%emt 0:00:47]} Rd8 {[%emt 0:01:00]} 17. Nf3 {[%emt 0:01:47]} Bc7 {[%emt 0:06:30]} 18. Qc3 {[%emt 0:01:46]} O-O {[%emt 0:00:30]} 19. Ne5 {[%emt 0:00:59]} Bxe5 {[%emt 0:00:30]} 20. Qxe5 {[%emt 0:00:21]} Qa4 {[%emt 0:04:08]} 21. b3 {[%emt 0:11:25]} Qxa2 {[%emt 0:04:38]} 22. Bxc5 {[%emt 0:00:22]} Qxb3 {[%emt 0:07:30]} 23. Bxf8 {[%emt 0:00:24]} Qxc4+ {[%emt 0:00:19]} 24. Kb2 {[%emt 0:00:30]} Rxf8 {[%emt 0:00:00]} 25. Rd4 {[%emt 0:03:29]} Qc6 {[%emt 0:01:00]} 26. Rd2 {[%emt 0:00:30]} Qb6+ {[%emt 0:00:30]} 27. Ka1 {[%emt 0:00:44]} Bd5 {[%emt 0:00:33]} 28. Rb2 {[%emt 0:01:11]} Qa6+ {[%emt 0:01:14]} 29. Kb1 {[%emt 0:00:01]} Qd3+ {[%emt 0:03:06]} 30. Ka1 {[%emt 0:00:01]} Qa3+ {[%emt 0:01:25]} 31. Kb1 {[%emt 0:00:01]} a5 {[%emt 0:01:38]} 32. Rd1 {[%emt 0:01:05]} Qa4 {[%emt 0:01:33]} 33. Rd4 {[%emt 0:00:09]} Qc6 {[%emt 0:00:03]} 34. Rb8 {[%emt 0:01:14]} Qc5 {[%emt 0:00:42]} 35. Rxf8+ {[%emt 0:00:17]} Kxf8 {[%emt 0:00:04]} 36. Qb8+ {[%emt 0:01:04]} Ke7 {[%emt 0:00:30]} 37. Qb2 {[%emt 0:00:30]} Bxg2 {[%emt 0:00:30]} 38. Rd1 {[%emt 0:00:30]} Be4+ {[%emt 0:00:30]} 39. Ka1 {[%emt 0:00:30]} Bd5 {[%emt 0:00:30]} 40. Rc1 {[%emt 0:00:30]} Qd6 {[%emt 0:00:30]} 41. Re1 {[%emt 0:00:30]} Qb4 {[%emt 0:00:30]} 42. Qxb4+ {[%emt 0:00:30]} axb4 {[%emt 0:00:30]} 43. Kb2 {[%emt 0:00:30]} Kf6 {[%emt 0:00:30]} 44. Rf1 {[%emt 0:00:30]} Kf5 {[%emt 0:00:30]} 45. Kc2 {[%emt 0:00:30]} f6 {[%emt 0:00:00]} 46. Kd3 {[%emt 0:00:46]} g5 {[%emt 0:00:00]} 47. Ke3 {[%emt 0:00:04]} g4 {[%emt 0:00:46]} 48. Rf2 {[%emt 0:00:54]} h5 {[%emt 0:00:07]} 49. Rb2 {[%emt 0:00:03]} b3 {[%emt 0:00:32]} 50. Rb1 {[%emt 0:00:30]} h4 {[%emt 0:00:00]} 51. Rb2 {[%emt 0:00:31]} g3 {[%emt 0:00:19]} 52. h3 {[%emt 0:00:49]} g2 {[%emt 0:00:30]} 53. Rb1 {[%emt 0:00:01]} Be4 {[%emt 0:00:11]} 54. Rg1 {[%emt 0:00:30]} b2 {[%emt 0:00:30]} 55. Kf2 {[%emt 0:00:30]} b1=Q {[%emt 0:00:00]} 56. Rxb1 {[%emt 0:00:00]} Bxb1 {[%emt 0:00:00]} 57. Kxg2 {[%emt 0:00:26]} Kxf4 {[%emt 0:00:17]} 58. Kh2 {[%emt 0:00:30]} e5 {[%emt 0:00:30]} 59. Kh1 {[%emt 0:00:30]} e4 {[%emt 0:00:30]} 60. Kg1 {[%emt 0:00:30]} e3 {[%emt 0:00:30]} 61. Kf1 {[%emt 0:00:00]} Kf3 {[%emt 0:00:00]} 62. Ke1 {[%emt 0:00:00]} Bc2 {[%emt 0:00:00]} 63. Kf1 {[%emt 0:00:00]} e2+ {[%emt 0:00:00]} 64. Ke1 {[%emt 0:00:00]} Bf5 {[%emt 0:00:00]} 65. Kd2 {[%emt 0:00:00]} Kf2 {[%emt 0:00:00]} 66. Kc3 {[%emt 0:00:00]} e1=Q+ {[%emt 0:00:00]} 67. Kd4 {[%emt 0:00:00]} Qe5+ {[%emt 0:00:00]} 68. Kc4 {[%emt 0:00:00]} Ke3 {[%emt 0:00:00]} 69. Kb3 {[%emt 0:00:03]} Kd3 {[%emt 0:00:00]} 70. Ka4 {[%emt 0:00:00]} Qb8 {[%emt 0:00:00]} 71. Ka5 {[%emt 0:00:00]} Bc8 {[%emt 0:00:00]} 72. Ka4 {[%emt 0:00:00]} Kc4 {[%emt 0:00:17]} 73. Ka3 {[%emt 0:00:19]} Qb3# {[%emt 0:00:00]} 0-1

[Event "TUR-ch U13-18 Open 2023"]
[Site "Antalya"]
[Date "2023.01.25"]
[Round "7"]
[White "Dirikolu, Deniz"]
[Black "Tezcan, Alper"]
[Result "1/2-1/2"]
[ECO "C12"]
[WhiteElo "1868"]
[BlackElo "1568"]
[Annotator "NA COMBH"]
[PlyCount "53"]
[EventDate "2023.01.17"]
[EventType "swiss"]
[EventCountry "TUR"]
[SourceTitle "playchess.com"]
[Source "ChessBase"]
[SourceQuality "1"]
[TimeControl "5400+30"]

1. e4 {[%emt 0:01:00]} e6 {[%emt 0:02:00]} 2. d4 {[%emt 0:02:30]} d5 {[%emt 0:00:30]} 3. Nc3 {[%emt 0:00:30]} Nf6 {[%emt 0:00:30]} 4. Bg5 {[%emt 0:00:30]} Bb4 {[%emt 0:00:00]} 5. e5 {[%emt 0:00:00]} h6 {[%emt 0:00:00]} 6. Be3 {[%emt 0:00:00]} Ne4 {[%emt 0:01:30]} 7. a3 {[%emt 0:00:00]} Bxc3+ {[%emt 0:10:30]} 8. bxc3 {[%emt 0:00:00]} c5 {[%emt 0:01:30]} 9. Bd3 {[%emt 0:14:30]} Qa5 {[%emt 0:11:30]} 10. Ne2 {[%emt 0:11:30]} cxd4 {[%emt 0:08:30]} 11. Bxd4 {[%emt 0:00:00]} Nc5 {[%emt 0:00:30]} 12. O-O {[%emt 0:02:00]} Nc6 {[%emt 0:05:30]} 13. f4 {[%emt 0:02:30]} g6 {[%emt 0:03:30]} 14. Kh1 {[%emt 0:01:30]} Bd7 {[%emt 0:06:30]} 15. Rb1 {[%emt 0:01:30]} Nxd3 {[%emt 0:01:30]} 16. Qxd3 {[%emt 0:00:30]} b6 {[%emt 0:01:30]} 17. g4 {[%emt 0:07:30]} Rc8 {[%emt 0:16:30]} 18. Rf3 {[%emt 0:04:30]} Qxa3 {[%emt 0:02:30]} 19. f5 {[%emt 0:00:30]} g5 {[%emt 0:03:30]} 20. Rbf1 {[%emt 0:02:30]} Kd8 {[%emt 0:02:56]} 21. fxe6 {[%emt 0:04:30]} Bxe6 {[%emt 0:00:20]} 22. Rxf7 {[%emt 0:00:00]} Bxf7 {[%emt 0:07:16]} 23. e6 {[%emt 0:00:00]} Bxe6 {[%emt 0:01:18]} 24. Bxh8 {[%emt 0:00:30]} Kd7 {[%emt 0:01:07]} 25. Bf6 {[%emt 0:01:30]} Rf8 {[%emt 0:03:25]} 26. Qh7+ {[%emt 0:01:30]} Kc8 {[%emt 0:00:24]} 27. Qxh6 {[%emt 0:00:30]} 1/2-1/2

[Event "TUR-ch U13-18 Open 2023"]
[Site "Antalya"]
[Date "2023.01.25"]
[Round "7"]
[White "Torun, Kagan"]
[Black "Celik, Ege Yigit"]
[Result "0-1"]
[ECO "B33"]
[WhiteElo "1442"]
[BlackElo "1891"]
[Annotator "NA RC COMBH"]
[PlyCount "102"]
[EventDate "2023.01.17"]
[EventType "swiss"]
[EventCountry "TUR"]
[SourceTitle "playchess.com"]
[Source "ChessBase"]
[SourceQuality "1"]
[TimeControl "5400+30"]

1. e4 {[%emt 0:01:00]} c5 {[%emt 0:01:00]} 2. Nc3 {[%emt 0:00:30]} Nc6 {[%emt 0:00:30]} 3. Nf3 {[%emt 0:00:00]} Nf6 {[%emt 0:00:30]} 4. d4 {[%emt 0:00:00]} cxd4 {[%emt 0:00:30]} 5. Nxd4 {[%emt 0:00:30]} Qb6 {[%emt 0:00:00]} 6. Nb3 {[%emt 0:00:30]} e6 {[%emt 0:00:00]} 7. Be3 {[%emt 0:02:30]} Qc7 {[%emt 0:00:00]} 8. a3 {[%emt 0:00:30]} a6 {[%emt 0:00:00]} 9. f4 {[%emt 0:08:30]} d6 {[%emt 0:00:30]} 10. g4 {[%emt 0:01:30]} Be7 {[%emt 0:04:30]} 11. a4 {[%emt 0:03:30]} b6 {[%emt 0:07:30]} 12. Bg2 {[%emt 0:05:30]} Bb7 {[%emt 0:04:30]} 13. Qe2 {[%emt 0:03:30]} Rc8 {[%emt 0:09:30]} 14. O-O {[%emt 0:13:30]} Nb4 {[%emt 0:20:30]} 15. g5 {[%emt 0:06:30]} Nd7 {[%emt 0:00:30]} 16. Qf2 {[%emt 0:04:30]} O-O {[%emt 0:06:30]} 17. Nd4 {[%emt 0:09:30]} Rfe8 {[%emt 0:21:30]} 18. h4 {[%emt 0:12:30]} Bf8 {[%emt 0:01:30]} 19. Nf3 {[%emt 0:02:30]} e5 {[%emt 0:00:57]} 20. Bh3 {[%emt 0:02:30]} exf4 {[%emt 0:07:45]} 21. Nd4 {[%emt 0:03:33]} Nc5 {[%emt 0:03:46]} 22. Qxf4 {[%emt 0:01:05]} Rcd8 {[%emt 0:01:07]} 23. Bg2 {[%emt 0:01:56]} g6 {[%emt 0:00:44]} 24. Rf2 {[%emt 0:01:29]} Bg7 {[%emt 0:00:20]} 25. Raf1 {[%emt 0:00:23]} Re7 {[%emt 0:00:00]} 26. Nd5 {[%emt 0:05:30]} Nxd5 {[%emt 0:01:40]} 27. exd5 {[%emt 0:00:30]} Rde8 {[%emt 0:00:30]} 28. Bc1 {[%emt 0:00:30]} Ne4 {[%emt 0:00:30]} 29. Ne6 {[%emt 0:00:30]} fxe6 {[%emt 0:00:30]} 30. Qxe4 {[%emt 0:00:30]} Bxd5 {[%emt 0:00:30]} 31. Qg4 {[%emt 0:00:30]} Bxg2 {[%emt 0:00:30]} 32. Kxg2 {[%emt 0:04:27]} Qc6+ {[%emt 0:00:00]} 33. Kg1 {[%emt 0:00:14]} Qc5 {[%emt 0:00:33]} 34. c3 {[%emt 0:00:20]} d5 {[%emt 0:04:22]} 35. h5 {[%emt 0:02:21]} gxh5 {[%emt 0:02:39]} 36. Qxh5 {[%emt 0:00:09]} d4 {[%emt 0:00:03]} 37. Qg4 {[%emt 0:02:43]} dxc3 {[%emt 0:00:39]} 38. bxc3 {[%emt 0:00:30]} Rf8 {[%emt 0:00:30]} 39. Kg2 {[%emt 0:00:30]} Rxf2+ {[%emt 0:00:30]} 40. Rxf2 {[%emt 0:00:30]} Qxc3 {[%emt 0:00:30]} 41. Qe4 {[%emt 0:00:30]} Qc8 {[%emt 0:00:30]} 42. g6 {[%emt 0:00:30]} hxg6 {[%emt 0:00:30]} 43. Qf4 {[%emt 0:02:45]} Qb7+ {[%emt 0:01:29]} 44. Kh2 {[%emt 0:00:50]} Qc7 {[%emt 0:00:13]} 45. Qxc7 {[%emt 0:00:31]} Rxc7 {[%emt 0:00:30]} 46. Be3 {[%emt 0:00:30]} b5 {[%emt 0:00:30]} 47. a5 {[%emt 0:00:00]} b4 {[%emt 0:00:00]} 48. Bb6 {[%emt 0:00:00]} Rc4 {[%emt 0:00:02]} 49. Rf1 {[%emt 0:00:23]} b3 {[%emt 0:00:00]} 50. Rb1 {[%emt 0:00:30]} b2 {[%emt 0:00:12]} 51. Be3 {[%emt 0:00:30]} Ra4 {[%emt 0:00:00]} 0-1

[Event "TUR-ch U13-18 Open 2023"]
[Site "Antalya"]
[Date "2023.01.26"]
[Round "8"]
[White "Tarhan, Adar"]
[Black "Kazik, Oguz Kagan"]
[Result "1-0"]
[ECO "B45"]
[WhiteElo "2321"]
[BlackElo "2053"]
[Annotator "TA"]
[PlyCount "113"]
[EventDate "2023.01.17"]
[EventType "swiss"]
[EventCountry "TUR"]
[SourceTitle "playchess.com"]
[Source "ChessBase"]
[SourceQuality "1"]
[TimeControl "5400+30"]

{[%evp 20,113,33,39,45,43,41,42,37,45,45,43,27,39,44,11,22,28,48,54,49,18,26,21,18,22,38,41,84,87,71,94,97,95,162,156,144,172,186,185,166,87,85,31,25,29,21,30,126,42,59,59,416,416,425,405,425,420,410,406,495,491,569,513,668,652,860,877,662,590,617,531,1134,990,1195,1174,1616,1445,1745,1686,1465,1497,1799,1353,12841,12842,12845,12846,12846,12847,12847,12847,29989,29990,29991,29992]} 1. e4 c5 2. Nf3 e6 3. d4 cxd4 4. Nxd4 Nf6 5. Nc3 Nc6 6. Ndb5 Bb4 7. a3 Bxc3+ 8. Nxc3 d5 9. exd5 exd5 10. Bd3 O-O 11. O-O {Active counter play!} Bg4 {[%cal Bc8g4,Bg4h5,Bh5g6,Bg6d3][%mdl 32] now scores much better than the old 11...d4. B45: Sicilian Four Knights.} 12. f3 Qb6+ 13. Kh1 Bh5 {White is slightly better.} 14. Bg5 Ne4 15. Nxe4 ({Don't play} 15. Nxd5 Nf2+ 16. Rxf2 (16. Kg1 $2 {leads to mate.} Nh3+ {[%mdl 64] Discovered Attack (Double check), Double Attack} 17. Kh1 Qg1+ {[%mdl 64] Deflection} 18. Rxg1 Nf2#) 16... Qxf2 $11) 15... dxe4 16. Bxe4 Qxb2 17. Qd6 Bg6 18. Rab1 {[%cal Ba1b1,Bb1b4,Bb4a4][%mdl 96] [#] Skewer} Qd4 $146 ({Predecessor:} 18... Qc3 19. Bd5 Rac8 20. Rxb7 Nd4 21. Qd7 Qxc2 22. Rg1 Qf2 23. Qe7 Nf5 24. Qb4 h6 {1-0 Sindarov,J (2587)-Jumabayev,R (2658) FIDE Grand Swiss 2021 (6)}) 19. Qxd4 Nxd4 20. Bxb7 (20. Be7 $5 {[%cal Re7f8]} Rfe8 21. Bxb7 $16 (21. Rxb7 Bxe4 22. fxe4 f6 $11)) 20... Rae8 {Repels Be7} 21. Rb4 Nxc2 22. Ra4 $36 {[%mdl 2048] Black is under pressure.} Bd3 23. Rc1 Re2 {[%cal Oa7a6]} 24. Rxa7 Rfe8 {( -> ...Re1+)} 25. h4 h6 26. Bf4 R8e7 (26... Ne1 $16) 27. Rd1 $1 $18 Re1+ 28. Rxe1 Rxe1+ 29. Kh2 Re2 30. Ra8+ (30. Bd5 $18) 30... Kh7 $16 {[#]} 31. Rd8 (31. Rf8 $1 $16) 31... Ne1 $14 32. Kh1 {Hoping for Bg3.} Nxg2 33. Bg3 {[%emt 1:24:00]} Bg6 {[%emt 1:46:12]} (33... Bf5 $1 $11) 34. a4 {[%emt 0:00:30]} (34. Ba6 $16 Rb2 35. h5 Bxh5 36. Be5) 34... Ra2 {[%emt 0:00:30][%cal Og2e3]} 35. Bd5 {[%emt 0:00:30]} Rd2 {[%emt 0:00:30][%mdl 8192] [#] A mistake that costs the game.} (35... Re2 $14) 36. h5 $1 $18 {[%emt 0:00:30][%mdl 512]} Bf5 {[%emt 0:00:30]} (36... Bc2 37. Be4+) 37. Rd6 {[%emt 0:00:30]} Ne3 {[%emt 0:00:30]} 38. Bxf7 {[%emt 0:00:30][%mdl 64] Discovered Attack. This pair of bishops is nice.} Rxd6 {[%emt 0:00:30]} 39. Bxd6 {[%emt 0:00:30][%mdl 4096] Endgame aiming for Bc5. KBB-KBN} Bd7 {[%emt 0:00:30]} 40. a5 {[%emt 0:00:30] Black must now prevent Bc5.} Bb5 {[%emt 0:00:30]} 41. Kg1 {[%emt 0:00:30]} Ba6 {[%emt 0:00:30]} 42. Kf2 {[%emt 0:00:30]} Nc4 {[%emt 0:00:30]} 43. Bc7 {[%emt 0:00:30]} Kh8 {[%emt 0:00:30]} 44. Kg3 {[%emt 0:00:30]} Nd2 {[%emt 0:00:30]} 45. f4 {[%emt 0:01:30][%cal Bf3f4,Bf4f5][%mdl 32] Strongly threatening f5.} Bb7 {[%emt 0:00:38]} 46. f5 {[%emt 0:00:30]} Ne4+ {[%emt 0:00:30]} 47. Kf4 {[%emt 0:00:30]} Nf6 {[%emt 0:00:00]} 48. Ke5 {[%emt 0:00:00]} Kh7 {[%emt 0:00:51]} 49. Bd8 {[%emt 0:00:00]} Ng4+ {[%emt 0:00:29]} 50. Kd4 {[%emt 0:01:30]} Nf2 {[%emt 0:00:28]} 51. Bh4 {[%emt 0:00:30]} Nd1 {[%emt 0:00:30]} 52. Bb3 {[%emt 0:00:30]} Bf3 {[%emt 0:00:27]} 53. a6 {[%emt 0:00:00][%cal Ba5a6,Ba6a7][%mdl 32]} Bxh5 {[%emt 0:00:31]} 54. a7 {[%emt 0:00:00]} Bf3 {[%emt 0:00:30]} 55. Bxd1 {[%emt 0:00:30]} Ba8 {[%emt 0:00:30]} 56. Bc2 {[%emt 0:00:00]} g5 {[%emt 0:00:00]} 57. fxg6+ {[%emt 0:00:00] Weighted Error Value: White=0.13 (very precise) /Black=0.57} 1-0

[Event "TUR-ch U13-18 Open 2023"]
[Site "Antalya"]
[Date "2023.01.26"]
[Round "8"]
[White "Ince, Taylan Ruzgar"]
[Black "Bektas, Cagan Erdem"]
[Result "1-0"]
[ECO "B31"]
[WhiteElo "2267"]
[BlackElo "1752"]
[Annotator "TA"]
[PlyCount "48"]
[EventDate "2023.01.17"]
[EventType "swiss"]
[EventCountry "TUR"]
[SourceTitle "playchess.com"]
[Source "ChessBase"]
[SourceQuality "1"]
[TimeControl "5400+30"]

{[%evp 11,48,22,33,16,16,12,37,29,27,15,23,22,36,29,66,49,62,64,67,67,62,77,71,60,147,143,142,137,141,90,130,135,657,669,29985,29983,29986,1855,1138]} 1. e4 c5 2. Nf3 Nc6 3. Bb5 g6 4. Bxc6 dxc6 5. d3 Bg7 6. h3 e5 7. a4 {B31: Sicilian: 2...Nc6 3 Bb5 g6.} a5 8. Be3 b6 9. Na3 {White is slightly better.} Qc7 10. Nc4 Be6 11. Nfd2 Ne7 12. O-O Nc8 13. f4 exf4 14. Bxf4 {[#]} Qd7 $146 ({Predecessor:} 14... Qd8 15. Kh1 O-O 16. Qe1 f6 17. Nf3 Ra7 18. Qg3 Bxc4 19. dxc4 g5 20. Bb8 Rd7 {1-0 Chiu,I (2245)-Melikyan,G (2159) Philadelphia int op 15th 2022 (8)}) 15. e5 O-O 16. Ne4 Bxc4 17. dxc4 Qe6 (17... Qd4+ $1 $14 18. Qxd4 cxd4) 18. Qe2 $16 h6 (18... Bxe5 $2 19. Bxe5 f5 20. Ng5 $18) 19. Rae1 {White is more active.} Ne7 {[#]} 20. Nf6+ Kh8 21. Qd2 Qxc4 $2 {[%mdl 8192] A mistake that costs the game.} (21... Ng8 $16) 22. Re4 $18 ({Weaker is} 22. Bxh6 Qd4+ 23. Qxd4 cxd4 $18) 22... Qe6 23. Bxh6 Rfd8 24. Qg5 (24. Rh4 $142 Ng8 25. Bf4+ Nh6 26. Bxh6 (26. Rxh6+ Bxh6 27. Qf2 Bxf4 $11) 26... Rxd2 27. Bxd2+ Bh6 28. Rxh6+ Kg7 29. Rh7+ Kf8 30. Rh8+ {[%mdl 64] Skewer} Ke7 31. Rxa8) 24... Nf5 {Weighted Error Value: White=0.06 (flawless) /Black=0.69} 1-0

[Event "TUR-ch U13-18 Open 2023"]
[Site "Antalya"]
[Date "2023.01.26"]
[Round "8"]
[White "Gokcek, Kursat Bugra"]
[Black "Kandaz, Berat Efe"]
[Result "1-0"]
[ECO "C26"]
[WhiteElo "2116"]
[BlackElo "1650"]
[Annotator "TA"]
[PlyCount "46"]
[EventDate "2023.01.17"]
[EventType "swiss"]
[EventCountry "TUR"]
[SourceTitle "playchess.com"]
[Source "ChessBase"]
[SourceQuality "1"]
[TimeControl "5400+30"]

{[%evp 17,46,-13,0,-32,0,-10,3,-22,11,-56,-43,-61,-38,-60,2,-15,14,0,0,0,0,0,0,-59,-58,-508,-122,-539,578,-89,-39]} 1. e4 e5 2. Nc3 Nf6 3. g3 d5 4. exd5 Nxd5 5. Bg2 Nxc3 6. bxc3 Bd6 7. Ne2 O-O 8. O-O c6 9. d3 Nd7 {The main line 9...Nd7 scores better than 9...Bg4.} 10. h3 {C26: Vienna Game: 2...Nf6, sidelines .} Nf6 11. a4 {[#]} h6 $146 ({Predecessor:} 11... Re8 12. c4 Qc7 13. Nc3 Bf5 14. Be3 e4 15. d4 Rad8 16. Qe2 Qa5 17. Nd1 h6 18. Bd2 {0-1 Urrutia Mule,O (1975)-Iruzubieta Villaluenga,J (2434) La Roda op 44th 2017 (1)}) 12. Rb1 {The position is equal.} Bc5 13. Be3 (13. d4 $11 Bd6 14. dxe5 Bxe5 15. Re1) 13... Bxe3 $15 14. fxe3 Qe7 15. c4 Be6 (15... e4 $15) 16. g4 Nh7 17. Qe1 f5 18. gxf5 Rxf5 19. Rxf5 Bxf5 20. Rb3 (20. Ng3 $11 Bc8 21. Ne4) 20... Rf8 21. Qf1 $2 {[%mdl 8192]} (21. Ng3 $15) 21... Rf6 $2 (21... Ng5 $19 {is more deadly.} 22. Ng3 Bxh3) 22. Kh2 $2 {[%mdl 8192] [#]} (22. Qe1 $17) 22... Rg6 $4 {[%mdl 8192]} 23. Qf3 (23. Qxf5 $18 Nf8 24. Ng3) 23... Be6 {[%mdl 32768] Weighted Error Value: White=1.43/Black=1.09. Loss on time!?} (23... Bc8 $17 24. Rb1 Qh4) 1-0

[Event "TUR-ch U13-18 Open 2023"]
[Site "Antalya"]
[Date "2023.01.26"]
[Round "8"]
[White "Danaci, Ege"]
[Black "Ozbek, Osman Tuncay"]
[Result "1-0"]
[ECO "C45"]
[WhiteElo "2088"]
[BlackElo "1405"]
[Annotator "TA"]
[PlyCount "71"]
[EventDate "2023.01.17"]
[EventType "swiss"]
[EventCountry "TUR"]
[SourceTitle "playchess.com"]
[Source "ChessBase"]
[SourceQuality "1"]
[TimeControl "5400+30"]

{[%evp 13,71,8,10,1,8,0,19,-10,-13,-23,9,4,29,43,79,72,74,55,71,78,90,88,95,21,18,24,31,0,0,0,63,71,63,41,35,16,25,19,4,0,71,101,103,57,174,169,181,133,137,127,114,31,193,196,231,227,447,450,422,330]} 1. e4 {[%emt 0:01:00]} e5 {[%emt 0:01:00]} 2. Nf3 {[%emt 0:00:30]} Nc6 {[%emt 0:00:00]} 3. d4 {[%emt 0:00:30]} exd4 {[%emt 0:00:00]} 4. Nxd4 {[%emt 0:00:30]} Qf6 {[%emt 0:00:30]} 5. Be3 {[%emt 0:01:30]} Bc5 {[%emt 0:01:30]} 6. c3 {[%emt 0:01:30]} Nge7 {[%emt 0:05:30]} 7. Nc2 {[%emt 0:03:30]} Bb6 {[%emt 0:04:30]} 8. Bxb6 {[%emt 0:04:30] C45: Scotch Game.} axb6 {[%emt 0:00:30]} 9. Ne3 {[%emt 0:00:00]} d6 {[%emt 0:01:30]} 10. Bc4 {[%emt 0:05:00] [#] The position is equal.} Ne5 $146 {[%emt 0:06:30]} ({Predecessor:} 10... O-O 11. O-O Ne5 12. Be2 N5g6 13. Bg4 Bxg4 14. Qxg4 Nf4 15. Qf3 Qg5 16. Nd2 Nd3 17. b3 Ng6 18. Nd5 Qxd2 19. Rad1 Qxa2 20. Qxd3 {0-1 Gola,K (2207)-Sycz,D (2182) POL-chT 2nd League 2017 (6.4)}) 11. Be2 {[%emt 0:03:30]} Bd7 {[%emt 0:06:30]} (11... h5 $5) 12. c4 {[%emt 0:01:30]} Bc6 {[%emt 0:05:30]} 13. Nc3 {[%emt 0:01:30]} N7g6 {[%emt 0:11:30]} 14. Ncd5 {[%emt 0:02:30]} Qd8 {[%emt 0:00:30]} 15. O-O {[%emt 0:00:30]} O-O {[%emt 0:02:30]} 16. f4 {[%emt 0:02:30]} Bxd5 {[%emt 0:01:30]} 17. Nxd5 {[%emt 0:11:30]} ({Reject} 17. Qxd5 Nc6 $11) 17... Nd7 {[%emt 0:05:30]} 18. Bg4 {[%emt 0:03:30]} (18. Nc3 $16) 18... Nf6 $11 {[%emt 0:02:30]} 19. Bf5 {[%emt 0:02:30]} Re8 {[%emt 0:07:30]} 20. Qd4 {[%emt 0:00:30]} Nxd5 {[%emt 0:01:30]} 21. cxd5 {[%emt 0:00:30]} Qf6 {[%emt 0:02:30]} (21... c5 $11 22. Qd3 Nf8) 22. Qxf6 $14 {[%emt 0:00:30]} gxf6 {[%emt 0:00:30]} 23. g3 {[%emt 0:00:30] Against Nh4} Ne7 {[%emt 0:00:30]} 24. Bh3 {[%emt 0:03:30]} f5 {[%emt 0:03:30][%mdl 64] [#] Deflection} 25. exf5 {[%emt 0:02:30][%cal Be4f5,Bf5f6][%mdl 32]} Nxd5 {[%emt 0:00:30]} 26. Rfd1 $36 {[%emt 0:02:30][%mdl 2048] White has some pressure.} Nb4 {[%emt 0:01:30]} (26... Nf6 $11) 27. a3 $16 {[%emt 0:00:30]} Nc6 {[%emt 0:01:30]} 28. Kf2 {[%emt 0:05:30]} (28. f6 $16) 28... Re7 {[%emt 0:07:30] [#]} (28... Kg7 $14) 29. f6 $1 $18 {[%emt 0:01:30]} Re4 {[%emt 0:00:30]} 30. Bf5 {[%emt 0:01:30]} (30. Rac1 $18) 30... Rc4 $16 {[%emt 0:00:32]} 31. Re1 {[%emt 0:01:30]} Rc5 {[%emt 0:02:10]} 32. Bd3 {[%emt 0:01:30] White is more active.} (32. Be4 $16) 32... Nd4 $2 {[%emt 0:01:24] A mistake that costs the game.} ({Black should play} 32... Rh5 $1 $14) 33. Re7 $18 {[%emt 0:01:30]} Ne6 {[%emt 0:01:38]} 34. Re1 {[%emt 0:00:30] And now R1xe6 would win.} Rh5 $2 {[%emt 0:00:52]} (34... Rf8 35. h4 h6) 35. f5 {[%emt 0:03:30]} Nf8 {[%emt 0:00:07]} 36. Kg2 {[%emt 0:02:30] Weighted Error Value: White=0.17 (very precise) /Black=0.35} ({Less strong is} 36. Rxc7 Rxh2+ 37. Kg1 Rh6 $18) 1-0